Cogmind - Beta 13 @@@ ROGUE MODE // 2024.07.07 @ 22:53:02 Player: Stavbearer Result: Destroyed by V4-NN3(R) with Subdweller Machine Gun Performance ------------- Evolutions (0) 0 Regions Visited (2) 400 Robots Destroyed (17) 85 Value Destroyed (257) 257 Prototype IDs (0) 0 Alien Tech Used (0) 0 Bonus (0) 0 TOTAL SCORE: 742 Bonus ------- None Cogmind --------- Core Integrity 0/250 Matter 276/300 Energy 100/100 System Corruption 0% Temperature Cool (0) Movement Treading (160) Location -10/Subcaves Parts ------- > --- POWER (1) -------- (None) > --- PROPULSION (2) --- Light Treads > --- UTILITY (2) ------ Terrain Scan Processor > --- WEAPON (2) ------- Light Assault Rifle Light Assault Rifle > --- INVENTORY (5) ---- Light Ion Engine Small Storage Unit Seismic Detector Transport Network Coupler Light Assault Rifle Peak State ------------ > --- POWER ------------ Ion Engine > --- PROPULSION ------- Light Treads Light Treads > --- UTILITY ---------- Improved Terrain Scanner Terrain Scan Processor > --- WEAPON ----------- EM Pulse Gun EM Pulse Gun > --- INVENTORY -------- Light Ion Engine Wheel Small Storage Unit Seismic Detector Light Assault Rifle [Rating: 10] Favorites ----------- Power Ion Engine Engine Ion Engine Propulsion Light Treads Treads Light Treads Utility Improved Terrain Scanner Device Improved Terrain Scanner Processor Terrain Scan Processor Weapon EM Pulse Gun Energy Gun EM Pulse Gun Ballistic Gun Light Assault Rifle Build | -11 -10 -10 ------- Run | Yrd Mat Sub Slots Evolved . | . . . Power . | . . . Propulsion . | . . . Utility . | . . . Weapon . | . . . Parts Attached 15 | 8 7 . Power 1 | 1 . . Engine 1 | 1 . . Core . | . . . Reactor . | . . . Propulsion 3 | 2 1 . Treads 3 | 2 1 . Leg . | . . . Wheel . | . . . Hover . | . . . Flight . | . . . Utility 4 | 2 2 . Device 3 | 2 1 . Storage . | . . . Processor 1 | . 1 . Hackware . | . . . Protection . | . . . Artifact . | . . . Weapon 7 | 3 4 . Energy Gun 3 | 2 1 . Energy Cannon . | . . . Ballistic Gun 4 | 1 3 . Ballistic Cannon . | . . . Launcher . | . . . Special Weapon . | . . . Impact Weapon . | . . . Slashing Weapon . | . . . Piercing Weapon . | . . . Special Melee Weapon . | . . . Unidentified Prototypes . | . . . Parts Lost 3 | . 1 2 Power 1 | . . 1 Propulsion 1 | . 1 . Utility 1 | . . 1 Weapon . | . . . Highest Loss Streak 2 | . 1 2 To Critical Strikes . | . . . Average Slot Usage (%) 92 | . 93 82 Engine 13 | . 14 12 Treads 21 | . 22 14 Device 15 | . 15 13 Processor 12 | . 12 14 Energy Gun 14 | . 16 . Ballistic Gun 13 | . 11 28 Naked Turns . | . . . Heaviest Build 11 | 10 11 8 Greatest Support 40 | 40 40 20 Greatest Overweight (x) 1 | 1 . . Average Overweight (x) . | . . . Largest Inventory Capacity 5 | 5 5 5 Average Capacity 5 | 5 5 5 Most Carried 5 | 5 5 5 Average Carried 4 | 4 4 5 Final Capacity 5 | 5 5 5 Final Carried 5 | 5 5 5 Class Distribution -------------------- 100% | Mutant Dominant Class ---------------- Mutant | -10/Materials Mutant | -10/Subcaves Resources | -11 -10 -10 ----------- Run | Yrd Mat Sub Matter Collected 391 | 272 119 . Remotely . | . . . Salvage Created 483 | 106 332 45 Parts 45 | 11 32 2 Haulers Intercepted 1 | . 1 . Recyclers Shooed 1 | 1 . . Parts Field Recycled . | . . . Retrieved Matter . | . . . Parts Self-Destructed . | . . . Prevented . | . . . Kills | -11 -10 -10 ------- Run | Yrd Mat Sub Combat Hostiles Destroyed 10 | . 9 1 Guns 9 | . 8 1 AOE 1 | . 1 . Classes Destroyed 8 | 3 4 1 Worker 1 | 1 . . Builder 1 | . 1 . Tunneler 3 | 2 1 . Hauler 1 | . 1 . Recycler 1 | 1 . . Swarmer 6 | . 6 . Grunt 3 | . 3 . Subdweller 1 | . . 1 Best Kill Streak 3 | 2 3 1 Combat Bots Only 3 | . 3 1 Max Kills in Single Turn 1 | 1 1 1 Gunslinging . | . . . Exploded 1 | . 1 . Melee . | . . . Uniques/NPCs Destroyed . | . . . Combat | -11 -10 -10 -------- Run | Yrd Mat Sub Hostile Shots Fired 49 | . 38 11 Missed 16 | . 12 4 Damage Taken 652 | . 476 176 Core 256 | . 178 78 Absorbed by Shields . | . . . Core Remaining (%) 100 | 100 . . Volleys Fired 80 | 34 41 5 Largest 2 | 2 2 2 Hottest 80 | 80 80 40 Shots Fired 129 | 37 82 10 Gun 129 | 37 82 10 Cannon . | . . . Launcher . | . . . Special . | . . . Kinetic 80 | 31 39 10 Thermal . | . . . Explosive . | . . . Electromagnetic 49 | 6 43 . Robot Hit Streak 8 | 7 7 8 Robot Miss Streak 5 | 4 5 2 Penetration Max . | . . . Secondary Targets . | . . . Shots Hit Robots 77 | 21 48 8 Core Hits 31 | 8 19 4 Critical Kills 1 | . 1 . Critical Parts Destroyed . | . . . Critical Strikes 1 | . 1 . Destroy 1 | . 1 . Melee Attacks . | . . . Impact . | . . . Slashing . | . . . Piercing . | . . . Sneak Attacks . | . . . Combat Hostiles . | . . . Follow-up Attacks . | . . . Damage Inflicted 771 | 187 540 44 Guns 741 | 187 510 44 Cannons . | . . . Explosions 30 | . 30 . Melee . | . . . Ramming . | . . . Kinetic 381 | 159 178 44 Thermal 30 | . 30 . Explosive . | . . . Electromagnetic 360 | 28 332 . Impact . | . . . Slashing . | . . . Piercing . | . . . Highest Corruption . | . . . Average Corruption . | . . . Corruption Purged . | . . . Corruption Blocked . | . . . Overload Shots . | . . . Overflow Damage 12 | . 12 . Projectiles . | . . . Explosions 12 | . 12 . Melee . | . . . Knockbacks . | . . . Impact . | . . . Kinetic . | . . . Secondary . | . . . Self-Inflicted Damage 234 | . 234 . Shots 3 | . 3 . Rammed . | . . . Targets Rammed . | . . . Kicked . | . . . Crushed . | . . . Highest Temperature 126 | 54 126 . Average Temperature 43 | 26 45 . Received Heat Transfer 90 | . 54 36 Siege Activations . | . . . Robots Corrupted . | . . . Combat Hostiles . | . . . Parts Fried 1 | . 1 . Impact Corruptions . | . . . Robots Melted . | . . . Combat Hostiles . | . . . Parts Melted . | . . . Heat Transferred . | . . . Parts Sabotaged . | . . . Parts Stolen . | . . . Parts Stripped . | . . . Power Chain Reactions 1 | . 1 . Alert | -11 -10 -10 ------- Run | Yrd Mat Sub Peak Influence 152 | 20 152 . Initial 13 | . 13 . Average 60 | 8 75 . Maximum Alert Level . | . . . Low Security (%) 100 | 100 100 . Level 1 . | . . . Level 2 . | . . . Level 3 . | . . . Level 4 . | . . . Level 5 . | . . . High Security . | . . . Max Security . | . . . Squads Dispatched 2 | . 2 . Investigation . | . . . Extermination . | . . . Reinforcement 2 | . 2 . Assault . | . . . Garrison . | . . . Intercept . | . . . Searches Triggered . | . . . Construction Impeded . | . . . Haulers Reinforced . | . . . Active Scanning Responses . | . . . Cargo Convoy Interrupts . | . . . Stealth | -11 -10 -10 --------- Run | Yrd Mat Sub Distress Signals 1 | . 1 . Communications Jammed . | . . . Distress Signals . | . . . Times Spotted 17 | . 15 2 Peak Tracking Total 4 | . 4 2 Tactical Retreats 2 | . 2 . Traps | -11 -10 -10 ------- Run | Yrd Mat Sub Traps Triggered . | . . . Indirectly . | . . . Trap Hack Attempts . | . . . Triggered . | . . . Disarmed . | . . . Reprogrammed . | . . . Reused . | . . . Traps Extracted . | . . . Installed . | . . . Triggered . | . . . Machines | -11 -10 -10 ---------- Run | Yrd Mat Sub Machines Disabled 2 | . 2 . Max in Single Turn 2 | . 2 . Machines Repaired . | . . . Machines Dismantled . | . . . Machines Sabotaged . | . . . Overloaded Fab Kills . | . . . Hacking | -11 -10 -10 --------- Run | Yrd Mat Sub Machines Accessed 2 | . 2 . Terminals 2 | . 2 . Fabricators . | . . . Repair Stations . | . . . Recycling Units . | . . . Scanalyzers . | . . . Garrison Access . | . . . Total Hacks 7 | . 7 . Successful 2 | . 2 . Failed 5 | . 5 . Catastrophic 2 | . 2 . Database Lockouts . | . . . Manual 8 | . 8 . Terminals 7 | . 7 . Fabricators . | . . . Repair Stations . | . . . Recycling Units . | . . . Scanalyzers . | . . . Garrison Access . | . . . Terminal Hacks 2 | . 2 . Locate Traps 1 | . 1 . Garrison Status 1 | . 1 . Fabricator Hacks . | . . . Repair Station Hacks . | . . . Recycling Unit Hacks . | . . . Scanalyzer . | . . . Garrison Access Hacks . | . . . Unauthorized Hacks . | . . . Terminals . | . . . Fabricators . | . . . Repair Stations . | . . . Recycling Units . | . . . Scanalyzers . | . . . Garrison Access . | . . . Data Cores Recovered . | . . . Used . | . . . Hacking Detections 2 | . 2 . Full Trace Events . | . . . Feedback Events . | . . . Feedback Blocked . | . . . Robot Schematics Acquired . | . . . Robots Built . | . . . Authchips . | . . . Time . | . . . Total Robot Build Rating . | . . . Part Schematics Acquired . | . . . Parts Built . | . . . Authchips . | . . . Time . | . . . Total Part Build Rating . | . . . Parts Repaired . | . . . Time . | . . . Parts Recycled . | . . . Recycled Matter . | . . . Retrieved Matter . | . . . Retrieved Components . | . . . Parts Scanalyzed . | . . . Part Schematics Acquired . | . . . Parts Damaged . | . . . Bothacking | -11 -10 -10 ------------ Run | Yrd Mat Sub Used RIF Installer . | . . . Robots Hacked . | . . . Non-combat . | . . . Combat . | . . . Robot Hacks Applied . | . . . Relay Couplers Released . | . . . Fabnet Peak Effective % . | . . . Robots Rewired . | . . . Allies Hacked . | . . . Hacks Repelled . | . . . Allies | -11 -10 -10 -------- Run | Yrd Mat Sub Total Allies . | . . . Largest Group . | . . . Highest-Rated Group . | . . . Highest-Rated Ally . | . . . Total Orders . | . . . Ally Attacks . | . . . Total Damage . | . . . Kills . | . . . Allies Corrupted . | . . . Allies Melted . | . . . Intel | -11 -10 -10 ------- Run | Yrd Mat Sub Robot Analysis Total . | . . . Derelict Logs Recovered . | . . . Drone Launches . | . . . Drone Recoveries . | . . . Exploration | -11 -10 -10 ------------- Run | Yrd Mat Sub Turns Passed 1361 | 262 934 165 Spaces Moved 570 | 119 411 40 Core 18 | 18 . . Treads 552 | 101 411 40 Legs . | . . . Wheels . | . . . Hover . | . . . Flight . | . . . Fastest Speed 50 | 50 160 160 Average Speed 157 | 146 160 160 Slowest Speed 160 | 160 160 160 Overloaded Moves . | . . . Propulsion Burnouts . | . . . Robots Hopped . | . . . Cave-ins Triggered . | . . . Exploration Rate (%) 18 | 7 43 5 Regions Visited 2 Branch Regions 1 Pre-discovered Areas . | . . . Known Exits Taken . | . . . Unknown Exits Taken 2 | 1 1 . Scrap Searched . | . . . Spaces Dug . | . . . Terrain Destroyed 52 | . 52 . Melee . | . . . Projectile . | . . . AOE 52 | . 52 . Terrain Rammed . | . . . Walls Destroyed . | . . . Machines Disabled . | . . . Actions | -11 -10 -10 --------- Run | Yrd Mat Sub Total 921 | 173 615 133 Wait 240 | 5 147 88 Move 568 | 118 410 40 Hop . | . . . Pick Up 10 | 7 3 . Fast Attach 7 | 6 1 . Attach 1 | 1 . . Detach . | . . . Swap 7 | 1 6 . Drop 8 | 1 7 . Fire 80 | 34 41 5 Melee . | . . . Ram . | . . . Kick . | . . . Crush . | . . . Escape Stasis . | . . . Rewire . | . . . Trap . | . . . Miscellaneous . | . . . Route ------- -11/Scrapyard -10/Materials (discovered 3 exits: [*Mat x2] / [*Sub]) -10/Subcaves History --------- Turn | Location | Event 14 | -11/Scrapyard | Discovered new exit (range 15) 263 | -11/Scrapyard | Entered Materials 303 | -10/Materials | Build established: Mutant 556 | -10/Materials | Discovered new exit (range 14) 816 | -10/Materials | Discovered new exit (range 10) 816 | -10/Materials | Core integrity fell below 50% 1171 | -10/Materials | Discovered new exit (range 9) 1197 | -10/Materials | Entered Subcaves 1352 | -10/Subcaves | Core integrity fell below 20% 1362 | -10/Subcaves | Destroyed by V4-NN3(R) with Subdweller Machine Gun Last Messages --------------- 01069_ K-01 Serf collects debris. 01069_ Acquired 27 matter. 01070_ K-01 Serf collects debris. 01076_ K-01 Serf cleans the Atomic Centrifuge. 01076_ K-01 Serf collects debris. 01080_ W-16 Scout sends out distress signal. 01090_ K-01 Serf collects debris. 01097_ K-01 Serf cleans the Terminal. 01171_ EXIT=FOUND 01187_ T-07 Excavator is excavating. 01190_ T-07 Excavator destroyed. 01192_ Acquired 23 matter. 01196_ Dropped Imp. Terrain Scanner. 01197_ U-05 Engineer lays Concrete. LOCATION=UNKNOWN AMBIENT_HEAT=-10 GOAL=ESCAPE 01341_ Ion Engine destroyed. 01353_ Imp. Terrain Scanner destroyed. 01356_ I7-15O(R) destroyed. Map ----- +----------------------------------------------------+ | ?????????????????????????????????????????????????? | | ?????????????????????????????????????????????????? | | ???????????????#????#????????????????????????????? | | ????????????#??#????????#????????????????????????? | | ???????????#???????#???#?????????????????????????? | | ?????????????#??????##???#?#?????????????????????? | | ???????????#?##???????#??????????????????????????? | | ???????#?????????#?###?#####?##??????????????????? | | ???????????????######????##????#?????????????????? | | ??????????#?##??#?#??#####???##??????????????????? | | ???????#???########??#??##?#?#?#?????????????????? | | ???????#??##### ####?####? ? ??????????????? | | ????#????## #?#??#?#?? ?? ? ??????????????? | | ???????### ##?#####? ?????????????? | | ?? ????#?# ########??## ?????????????? | | ??? ????### ##########?#? ?? ????????????? | | ???? ?????## # ###???#?# " ??????????????? | | ?????? ### ####?#### "#?????????????? | | ??????? ?? ?## ######?## ##?#?????#?????? | | ??#?????? ### # # ####??### ###??#??#???????? | | ?????#? ??#?# ## ######### ###?#???????????? | | ?????? ? ### # ## ####### """##"#???????????? | | ????? ?#? ## #?#### """ ""????#??????? | | ?????? ?## ### #######""" ""? ??????????? | | ?????? ? ?# #######"" """"" ##??#?????? | | ????? ?? ## # ##@#" """" ##????????? | | ?????? # =%& """ ###?#? ??? | | ???????? # ! R "" """"?????????? | | ??????? # "" """""#????????? | | ????? ? ## ######## """"""?????????? | | ???????? ######?### """"?????? ???? | | ?????????? ?##?#### "" ""????????? | | ??????????? ??##?#?###### ???????? | | ???????????# #?## ###### ?????? | | ???????????####?##? ? ##### ### #????? | | ????????????#?##?# ?### ##? ?????? | | ???????????????## ? ??#### #?? ?????? | | ????????????????## ??#### ???? ?????? | | ?????????????????# ? ?#?##?## ## ??? ??????? | | ?????????????????#? ??#??#?? ##? ?? ???????? | | ???????????????????????##??? #?????????????????? | | ??????????????????????????? ##????????????????? | | ???????????????????????#???? ##????? ???????????? | | ????????????????????????????##???????????????????? | | ?????????????????????????????????????????????????? | | ?????????????????????????#???????????????????????? | | ?????????????????????????????????????????????????? | | ?????????????????????????????????????????????????? | | ?????????????????????????????????????????????????? | | ?????????????????????????????????????????????????? | +----------------------------------------------------+ Best States ------------- Heat Dissipation 25 Energy Generation 10 Energy Capacity 250 Matter Stores 300 Matter Capacity 300 Sight Range 16 Terrain Scan Range 16 Terrain Scan Density 85 Evasion (%) 50 Recoil Reduction 2 Item Schematics ----------------- None Robot Schematics ------------------ None Fabricated ------------ Nothing Alien Tech Used ----------------- None Achievements -------------- None Challenges ------------ None Game ------ Seed DamperThunderWings Manual? 0 Play Time 00:13:43 Cumulative 20.6 hours Start 2024.07.07 @ 22:39:36 End 2024.07.07 @ 22:53:02 Sessions 1 Manual Loads 0 Difficulty Rogue Special Mode None Game No. 19 Rogue 19 Adventurer 0 Explorer 0 Win Type - Total 0 Types 0/0/0/0/0/0/0/0/0 Lore% 17 Gallery% 25 Achievement% 21 Wizard Run 0 Options --------- Layout 1 ASCII 0 Keyboard 0 Movement Arrows Keybinds 0 Fullscreen 1 Font 24/Smallcaps Map View 50x35 Zoom Use 0% Tactical HUD 1 Map Filters NONE Filters NONE Steam 1 RUN: 4c9607fe-ad51-4351-a206-39ccd50514ac